bitfinex/quotes_SOLUSD_20250829
["timestamp","ask_amount","ask_price","bid_price","bid_amount"]
[1756441960509,0.06,217.67,217.66,8.76493806]
[1756441964543,0.74,217.67,217.66,8.76493806]
[1756441967155,0.74,217.67,217.63,26.0]
[1756441967339,0.06,217.67,217.66,4.17061665]
[1756441968066,0.74,217.67,217.66,4.17061665]
[1756441971956,0.74,217.67,217.64,23.73584825]
[1756441972157,0.06,217.67,217.66,4.17061665]
[1756441972561,0.74,217.67,217.66,4.17061665]
[1756441974862,0.06,217.67,217.66,34.79493806]
[1756441975460,0.06,217.67,217.66,34.76493806]
[1756441978263,0.06,217.67,217.66,34.79493806]
[1756441978594,0.06,217.67,217.66,8.76493806]
[1756441980303,0.06,217.7,217.69,26.0]
[1756441980506,0.06,217.7,217.69,8.3412333]
[1756441980671,0.06,217.72,217.71,30.17061665]
[1756441980989,0.72,217.83,217.75,26.0]
[1756441981190,0.72,217.83,217.79,4.17061665]
[1756441981384,0.72,217.83,217.79,30.59157904]
[1756441981571,0.72,217.8,217.79,30.17061665]
[1756441981974,0.72,217.8,217.79,4.17061665]
[1756441982975,0.72,217.8,217.76,4.59212512]
[1756441983288,0.72,217.8,217.79,4.17061665]
[1756441983289,0.06,217.8,217.79,4.17061665]
[1756441983881,0.72,217.8,217.79,4.17061665]
[1756441984183,0.06,217.8,217.79,8.76219569]
[1756441984394,0.06,217.84,217.83,13.59559401]
[1756441984689,0.06,217.86,217.83,13.59559401]
[1756441984690,0.06,217.86,217.83,80.8305338]
[1756441984864,0.06,217.86,217.85,4.17061665]
[1756441985664,0.06,217.86,217.85,42.78982465]
[1756441985900,0.06,217.86,217.85,60.97573309]
[1756441986194,0.06,217.86,217.85,61.00573309]
[1756441986881,0.06,217.86,217.85,61.29005623]
[1756441987074,0.1,217.89,217.86,13.87991715]
[1756441987380,0.1,217.89,217.86,18.0805338]
[1756441987585,0.1,217.89,217.86,4.17061665]
[1756441988077,0.1,217.89,217.86,8.76072038]
[1756441989075,0.1,217.89,217.86,45.54072038]
[1756441989396,0.1,217.89,217.86,45.52072038]
[1756441989772,0.1,217.89,217.86,8.76072038]
[1756441989973,0.1,217.89,217.86,45.52072038]
[1756441990401,0.1,217.89,217.87,13.59559401]
[1756441990565,0.66,217.96,217.9,26.0]
[1756441990770,0.66,217.96,217.95,4.17061665]
[1756441991687,0.66,217.96,217.95,8.75882495]
[1756441992995,0.06,218.0,217.95,8.75882495]
[1756441993180,0.66,217.98,217.95,4.5882083]
[1756441993372,0.66,217.97,217.95,4.5882083]
[1756441993566,0.66,217.96,217.95,4.5882083]
[1756441993769,0.72,218.0,217.98,26.0]
[1756441994292,0.72,218.0,217.99,4.17061665]
[1756441994671,0.06,218.0,217.99,30.17061665]
[1756441995164,0.06,218.0,217.99,4.17061665]
[1756441995772,0.06,218.0,217.99,8.75798304]
[1756441995975,0.06,218.02,218.01,39.59559401]
[1756441996174,0.06,218.02,218.01,85.419845]
[1756441996397,0.06,218.02,218.01,105.449845]
[1756441996581,0.06,218.02,218.01,104.99115045]
[1756441996785,0.06,218.02,218.01,84.99115045]
[1756441997089,0.06,218.06,218.05,39.87991715]
[1756441997294,0.06,218.06,218.05,80.7905338]
[1756441997469,0.06,218.06,218.05,81.27914421]
[1756441997670,0.06,218.06,218.05,85.3766379]
[1756441997892,0.06,218.06,218.05,87.70259631]
[1756441998094,0.06,218.06,218.05,50.96259631]
[1756441998293,0.06,218.06,218.05,50.18966276]
[1756441998484,0.06,218.06,218.05,86.92966276]
[1756441999686,0.06,218.06,218.05,84.40424078]
[1756441999889,0.06,218.06,218.05,47.66424078]
[1756442000081,0.06,218.06,218.05,84.38424078]
[1756442000704,0.06,218.06,218.05,84.69856392]
[1756442002197,0.06,218.08,218.06,13.87991715]
[1756442002395,0.06,218.08,218.07,41.17493979]
[1756442002574,0.06,218.09,218.08,13.87991715]
[1756442002903,0.06,218.09,218.08,18.0805338]
[1756442003204,0.06,218.09,218.08,13.90991715]
[1756442003374,0.06,218.09,218.08,18.0805338]
[1756442003574,0.06,218.11,218.1,39.59559401]
[1756442003793,0.06,218.11,218.1,80.7705338]
[1756442003999,0.06,218.11,218.1,85.35558652]
[1756442004183,1e-08,218.11,218.1,85.84409179]
[1756442004376,1e-08,218.11,218.1,90.01470779]
[1756442004689,1e-08,218.11,218.1,48.63558587]
[1756442004883,1e-08,218.11,218.1,89.52620252]
[1756442005085,1e-08,218.11,218.1,89.96470779]
[1756442005283,1e-08,218.11,218.1,53.26470779]
[1756442005484,1e-08,218.11,218.1,89.96470779]
[1756442006203,1e-08,218.11,218.1,53.26470779]
[1756442006412,1e-08,218.11,218.1,89.96470779]
[1756442006999,1e-08,218.11,218.1,94.16532444]
[1756442007198,1e-08,218.11,218.1,93.67681917]
[1756442007582,1e-08,218.11,218.1,89.50620252]
[1756442008402,1e-08,218.11,218.1,93.67681917]
[1756442008820,1e-08,218.11,218.1,52.80620252]
[1756442009138,1e-08,218.11,218.1,89.50620252]
[1756442010246,1e-08,218.11,218.1,52.80620252]
[1756442010400,1e-08,218.11,218.1,8.75566872]
[1756442010401,0.67000001,218.11,218.1,8.75566872]
[1756442010604,0.67000001,218.11,218.1,4.170616]
[1756442010903,0.67000001,218.11,218.1,45.04123265]
[1756442011217,0.67000001,218.11,218.1,4.170616]
[1756442011436,0.67000001,218.11,218.1,40.85061665]
[1756442011727,0.67000001,218.11,218.1,4.17061665]
[1756442012304,0.67000001,218.11,218.03,11.496845]
[1756442012530,0.67,218.1,218.07,4.17061665]
[1756442012826,0.67,218.09,218.07,4.17061665]
[1756442013021,1e-08,218.11,218.08,26.0]
[1756442013329,1e-08,218.11,218.07,4.17061665]
[1756442013516,0.67,218.1,218.07,4.17061665]
[1756442013719,0.67,218.09,218.07,4.17061665]
[1756442013914,0.67,218.08,218.06,4.17061665]
[1756442014107,0.67,218.07,218.03,41.26646578]
[1756442014306,1e-08,218.11,218.06,30.17061665]
[1756442014533,1e-08,218.11,218.09,4.17061665]
[1756442014913,0.67,218.1,218.09,4.17061665]
[1756442016333,0.67,218.1,218.07,4.17061665]
[1756442016506,0.67,218.09,218.07,4.17061665]
[1756442016950,0.67,218.08,218.07,4.17061665]
[1756442017436,1e-08,218.11,218.07,4.17061665]
[1756442017644,0.67,218.08,218.07,26.0]
[1756442017855,0.67,218.08,218.07,30.17061665]
[1756442018430,0.67,218.08,218.07,34.75630014]
[1756442020039,0.67,218.08,218.07,71.43630014]
[1756442020221,1e-08,218.11,218.07,67.26568349]
[1756442020420,0.67,218.1,218.07,67.26568349]
[1756442020631,1e-08,218.11,218.09,4.17061665]
[1756442020935,1e-08,218.11,218.1,4.17061665]
[1756442021729,0.67000001,218.11,218.1,4.17061665]
[1756442022531,1e-08,218.11,218.1,45.43566937]
[1756442022759,1e-08,218.11,218.1,50.01940137]
[1756442023551,0.67000001,218.11,218.1,50.01940137]
[1756442023730,1e-08,218.11,218.1,50.01940137]
[1756442024556,1e-08,218.11,218.1,50.04940137]
[1756442024854,1e-08,218.11,218.1,45.87878472]
[1756442025156,1e-08,218.11,218.1,50.04940137]
[1756442025366,1e-08,218.11,218.1,63.95931852]
[1756442025761,1e-08,218.11,218.1,63.92931852]
[1756442026056,1e-08,218.11,218.1,50.04940137]
[1756442026948,1e-08,218.11,218.1,45.87878472]
[1756442027159,1e-08,218.11,218.1,50.04940137]
[1756442027363,1e-08,218.11,218.1,9.19878472]
[1756442027554,0.67000001,218.11,218.1,76.02940137]
[1756442028358,0.67000001,218.11,218.1,4.613732]
[1756442028657,0.67000001,218.11,218.1,0.03]
[1756442028863,0.67000001,218.11,218.1,4.20061665]
[1756442029340,1e-08,218.11,218.1,4.20061665]
[1756442030033,0.67000001,218.11,218.07,4.260617]
[1756442030235,0.67,218.1,218.07,0.03]
[1756442032258,0.67,218.1,218.07,4.20061665]
[1756442032459,0.67,218.09,218.07,4.20061665]
[1756442032636,1e-08,218.11,218.08,4.17061665]
[1756442033356,0.67,218.1,218.08,4.17061665]
[1756442033658,0.67,218.09,218.08,8.75605276]
[1756442035761,1e-08,218.11,218.08,8.75605276]
[1756442035946,0.67000001,218.11,218.1,4.17061665]
[1756442036751,0.67000001,218.11,218.09,4.17061665]
[1756442036952,0.67,218.1,218.09,4.17061665]
[1756442037353,0.67,218.1,218.08,4.17061665]
[1756442037554,0.67,218.09,218.08,30.17061665]
[1756442038059,0.67000001,218.11,218.08,30.17061665]
[1756442038248,0.67,218.1,218.09,4.17061665]
[1756442039259,0.67,218.1,218.09,8.75587961]
[1756442040063,4.84061665,218.1,218.07,0.03]
[1756442040265,1e-08,218.11,218.07,0.03]
[1756442040266,4.84061665,218.09,218.07,0.03]
[1756442040443,0.67,218.09,218.07,0.03]
[1756442040648,0.71,218.08,218.07,0.03]
[1756442040860,0.71,218.08,218.07,8.78630014]
[1756442041476,0.71,218.08,218.07,0.03]
[1756442042252,0.71,218.08,218.07,4.20061665]
[1756442042455,1e-08,218.11,218.08,26.0]
[1756442042679,1e-08,218.11,218.1,4.17061665]
[1756442043544,1e-08,218.11,218.1,8.75566937]
[1756442044258,1e-08,218.11,218.09,1.837264]
[1756442044465,1e-08,218.11,218.1,4.17061665]
[1756442045558,1e-08,218.11,218.1,34.75566937]
[1756442045962,1e-08,218.11,218.1,30.58505272]
[1756442046186,1e-08,218.11,218.1,34.75566937]
[1756442047460,0.71000001,218.11,218.09,1.837264]
[1756442047685,0.71,218.1,218.09,1.837264]
[1756442048071,4.88061665,218.1,218.09,1.117264]
[1756442048270,4.88061665,218.1,218.07,0.03]
[1756442048489,0.71,218.1,218.07,0.03]
[1756442048663,0.71,218.09,218.07,0.03]
[1756442048863,0.71,218.08,218.07,0.03]
[1756442049186,4.88061665,218.08,218.07,0.03]
[1756442050394,0.71,218.08,218.07,0.03]
[1756442052488,4.88061665,218.08,218.07,0.03]
[1756442054391,0.28432314,218.07,217.99,0.958109]
[1756442054593,4.17061665,218.03,217.99,0.958109]
[1756442054789,0.71,218.02,217.98,4.58757684]
[1756442054992,4.88061665,218.01,217.97,2.39202612]
[1756442055197,0.71,218.01,217.97,2.39202612]
[1756442055371,0.71,218.0,217.96,4.17061665]
[1756442055696,0.71,217.99,217.97,26.0]
[1756442055890,0.71,217.98,217.96,4.58799765]
[1756442056200,0.71,217.98,217.94,6.56348994]
[1756442056564,36.64,217.99,217.94,2.39287329]
[1756442056787,0.71,217.97,217.94,6.98126727]
[1756442057094,0.71,217.96,217.92,8.75930702]
[1756442057294,4.17061665,217.98,217.92,8.75930702]
[1756442057481,0.71,217.95,217.92,8.75930702]
[1756442057678,0.71,217.95,217.92,8.45930702]
[1756442057891,0.71,217.95,217.93,4.17061665]
[1756442058083,0.71,217.95,217.91,2.39331884]
[1756442058290,37.35,217.97,217.93,4.17061665]
[1756442058483,0.71,217.96,217.93,4.17061665]
[1756442059206,0.71,217.95,217.92,8.75927653]
[1756442059582,0.71,217.95,217.92,8.78927653]
[1756442060401,0.77,217.98,217.93,4.17061665]
[1756442060599,37.35,217.97,217.94,4.17061665]
[1756442060806,0.71,217.96,217.93,4.17061665]
[1756442060982,36.64,217.97,217.92,8.78927653]
[1756442061195,0.71,217.95,217.92,8.78927653]
[1756442061379,0.71,217.95,217.93,4.17061665]
[1756442062083,0.71,217.95,217.93,8.75910797]
[1756442062397,36.64,217.96,217.93,8.75910797]
[1756442062584,37.35,217.96,217.94,4.17061665]
[1756442062780,36.64,217.96,217.94,4.17061665]
[1756442062982,0.71,217.95,217.93,4.17061665]
[1756442063194,36.64,217.97,217.94,4.88061665]
[1756442063386,36.64,217.97,217.96,4.17061665]
[1756442063781,36.64,217.97,217.95,4.17061665]
[1756442064284,36.64,217.97,217.96,4.58799779]
[1756442064490,0.06,217.98,217.96,9.46861444]
[1756442064794,0.06,217.98,217.96,5.29799779]
[1756442065000,0.06,217.98,217.97,4.17061665]
[1756442066196,0.06,217.98,217.97,8.75840396]
[1756442066401,0.06,217.98,217.97,4.58778731]
[1756442066573,0.06,217.98,217.97,8.75840396]
[1756442066888,0.77,217.98,217.97,4.17061665]
[1756442067295,0.77,217.98,217.95,4.17061665]
[1756442067484,0.71,217.97,217.95,4.17061665]
[1756442067687,0.71,217.96,217.95,4.17061665]
[1756442067878,36.64,217.96,217.95,4.17061665]
[1756442068087,37.35,217.96,217.95,4.17061665]
[1756442068410,0.06,217.98,217.95,4.17061665]
[1756442068598,37.35,217.97,217.92,0.03]
[1756442068916,0.06,217.98,217.96,4.17061665]
[1756442069208,0.06,217.98,217.93,4.58862237]
[1756442069384,37.35,217.97,217.93,4.58862237]
[1756442070202,37.35,217.97,217.92,0.03]
[1756442070397,0.68,217.96,217.92,0.03]
[1756442070609,0.68,217.96,217.95,4.17061665]
[1756442071192,0.68,217.96,217.92,0.03]
[1756442071193,0.68,217.96,217.93,4.17061665]
[1756442071385,0.68,217.95,217.93,4.17061665]
[1756442071587,0.68,217.94,217.93,4.17061665]
[1756442072477,0.68,217.94,217.92,0.03]
[1756442072699,5.26842181,217.94,217.92,0.03]
[1756442072900,0.28432314,217.93,217.92,0.03]
[1756442073298,0.96432314,217.93,217.92,0.03]
[1756442073800,5.13493979,217.93,217.92,0.03]
[1756442074186,0.96432314,217.93,217.92,0.03]
[1756442074378,37.60432314,217.93,217.92,0.03]
[1756442074614,0.96432314,217.93,217.92,0.03]
[1756442074785,37.60432314,217.93,217.92,0.03]
[1756442075185,51.19991715,217.93,217.92,0.03]
[1756442075410,55.3705338,217.93,217.92,0.03]
[1756442075802,18.7305338,217.93,217.92,0.03]
[1756442076005,59.95916317,217.93,217.92,0.03]
[1756442076207,18.7305338,217.93,217.92,0.03]
[1756442076517,51.19991715,217.93,217.92,0.03]
[1756442077083,0.68,217.93,217.92,0.03]
[1756442077280,37.32,217.93,217.92,0.03]
[1756442078312,51.19991715,217.93,217.92,0.03]
[1756442078491,0.06,217.97,217.92,4.91061665]
[1756442078685,36.64,217.96,217.94,4.17061665]
[1756442078891,36.64,217.96,217.95,4.17061665]
[1756442079618,0.06,217.97,217.95,4.17061665]
[1756442079793,0.06,217.97,217.96,4.88061665]
[1756442080216,0.06,217.97,217.96,4.17061665]
[1756442080421,0.06,217.97,217.96,9.46861444]
[1756442088433,0.06,217.97,217.96,8.75861444]
[1756442091233,0.06,217.97,217.96,4.58799779]
[1756442091411,0.06,217.97,217.96,34.75861444]
[1756442092239,0.06,217.97,217.96,35.46861444]
[1756442093318,0.74,217.97,217.96,4.17061665]
[1756442093524,0.74,217.97,217.95,4.17061665]
[1756442093735,0.68,217.96,217.94,4.17061665]
[1756442093931,0.68,217.95,217.94,4.17061665]
[1756442094135,0.06,217.97,217.94,4.17061665]
[1756442094434,0.68,217.96,217.95,30.17061665]
[1756442095032,0.68,217.96,217.95,4.17061665]
[1756442096620,37.3,217.96,217.95,4.17061665]
[1756442096920,0.06,217.97,217.95,4.17061665]
[1756442096921,36.68,217.97,217.95,8.75882495]
[1756442097234,0.06,217.97,217.96,4.17061665]
[1756442097612,0.74,217.97,217.96,4.17061665]
[1756442097809,0.74,217.97,217.92,26.03]
[1756442098014,4.85061665,217.96,217.92,0.03]
[1756442098443,0.68,217.96,217.92,0.03]
[1756442098626,0.68,217.96,217.92,4.20061665]
[1756442098825,0.68,217.95,217.92,0.03]
[1756442099335,36.62,217.94,217.92,0.03]
[1756442099740,0.68,217.95,217.92,0.03]
[1756442100138,40.79061665,217.94,217.92,0.03]
[1756442100516,0.69,217.93,217.92,0.03]
[1756442101021,18.7405338,217.93,217.92,0.03]
[1756442101225,18.7405338,217.93,217.89,0.03]
[1756442101226,0.69,217.93,217.89,0.03]
[1756442101433,36.62,217.92,217.89,0.03]
[1756442101838,3.83575974,217.96,217.89,0.03]
[1756442101839,29.89575974,217.97,217.9,4.17061665]
[1756442102026,37.31,217.96,217.92,4.17061665]
[1756442102222,37.31,217.96,217.89,0.03]
[1756442102430,0.28432314,217.94,217.89,0.03]
[1756442102734,0.69,217.93,217.89,4.20061665]
[1756442102921,0.69,217.92,217.89,4.20061665]
[1756442103121,37.31,217.91,217.89,4.20061665]
[1756442103331,36.62,217.91,217.89,0.03]
[1756442103532,0.69,217.9,217.89,0.03]
[1756442103842,0.69,217.9,217.89,4.20061665]
[1756442104248,13.65559401,217.97,217.89,8.79008634]
[1756442104249,0.69,217.92,217.89,8.79008634]
[1756442104430,8.75863446,217.96,217.89,8.79008634]
[1756442104431,36.62,217.91,217.9,4.17061665]
[1756442104848,36.62,217.91,217.89,0.03]
[1756442105037,37.31,217.91,217.89,4.20061665]
[1756442105228,4.17061665,217.95,217.89,4.20061665]
[1756442105553,0.69,217.93,217.89,4.20061665]
[1756442105846,0.69,217.92,217.89,4.20061665]
[1756442106031,0.69,217.92,217.9,4.17061665]
[1756442106346,36.62,217.94,217.91,4.17061665]
[1756442106347,37.31,217.94,217.91,4.17061665]
[1756442106545,0.69,217.93,217.91,4.17061665]
[1756442106843,36.62,217.93,217.91,4.17061665]
[1756442107222,36.62,217.93,217.92,4.17061665]
[1756442108346,37.31,217.93,217.9,26.0]
[1756442108532,0.69,217.92,217.89,4.20061665]
[1756442109135,0.69,217.92,217.89,0.03]
[1756442109826,0.69,217.92,217.89,8.79003968]
[1756442110043,0.69,217.91,217.89,4.20061665]
[1756442110243,36.62,217.93,217.9,4.17061665]
[1756442110751,36.6,217.92,217.91,4.17061665]
[1756442111153,36.6,217.92,217.9,4.17061665]
[1756442111451,0.69,217.95,217.91,4.17061665]
[1756442111656,36.6,217.94,217.91,4.17061665]
[1756442112042,37.29,217.94,217.91,4.17061665]
[1756442112237,0.69,217.93,217.89,4.20061665]
[1756442112442,36.6,217.94,217.9,4.17061665]
[1756442112647,0.69,217.92,217.89,8.79006865]
[1756442113034,0.69,217.92,217.89,4.20061665]
[1756442113259,0.69,217.91,217.89,0.03]
[1756442113763,4.17061665,217.93,217.89,0.03]
[1756442114082,0.75,217.92,217.89,0.03]
[1756442114243,36.66,217.92,217.89,4.20061665]
[1756442114444,4.86061665,217.91,217.89,0.03]
[1756442114842,4.45493979,217.9,217.89,0.03]
[1756442115236,5.14493979,217.9,217.89,0.03]
[1756442116260,23.32979492,217.9,217.89,0.03]
[1756442116633,59.92979492,217.9,217.89,0.03]
[1756442119475,13.87991715,217.89,217.88,0.2]
[1756442119770,0.28432314,217.81,217.72,0.03]
[1756442119952,55.05621066,217.8,217.72,0.03]
[1756442120265,55.3405338,217.8,217.72,0.03]
[1756442120494,59.93190202,217.8,217.72,0.03]
[1756442120988,64.10251867,217.8,217.72,0.03]
[1756442121576,64.10251867,217.8,217.79,1e-08]
[1756442121762,26.0,217.73,217.72,0.03]
[1756442121963,0.28432314,217.71,217.7,0.2]
[1756442122163,18.7405338,217.71,217.7,0.2]
[1756442122362,41.74493979,217.71,217.7,0.2]
[1756442122590,46.33820606,217.71,217.7,0.2]
[1756442122981,40.77061665,217.71,217.7,0.2]
[1756442123679,36.6,217.71,217.7,0.2]
[1756442124099,4.17061665,217.74,217.7,0.2]
[1756442124386,36.62,217.73,217.7,0.89]
[1756442124688,4.17061665,217.77,217.71,4.86061665]
[1756442124888,36.62,217.76,217.72,4.17061665]
[1756442125194,36.62,217.76,217.74,4.17061665]
[1756442125494,36.62,217.76,217.74,4.86061665]
[1756442125862,5.28071736,217.84,217.75,4.86061665]
[1756442126065,4.17061665,217.81,217.76,4.17061665]
[1756442126282,36.62,217.8,217.76,4.86061665]
[1756442126789,36.62,217.8,217.76,0.69]
[1756442126987,40.79061665,217.8,217.74,4.17061665]
[1756442127184,41.48061665,217.8,217.74,4.17061665]
[1756442127484,46.07199352,217.8,217.74,4.17061665]
[1756442127701,41.48061665,217.8,217.74,4.17061665]
[1756442128070,4.17061665,217.79,217.7,0.2]
[1756442128394,4.17061665,217.76,217.7,4.37061665]
[1756442128586,40.79061665,217.75,217.7,0.2]
[1756442128774,40.79061665,217.75,217.7,0.89]
[1756442128976,40.79061665,217.75,217.7,9.65407833]
[1756442129202,36.62,217.75,217.71,4.17061665]
[1756442129405,36.62,217.75,217.72,4.17061665]
[1756442129592,36.62,217.75,217.73,4.86061665]
[1756442129898,36.62,217.75,217.74,4.17061665]
[1756442130276,36.62,217.75,217.73,4.86061665]
[1756442130677,36.62,217.75,217.73,0.69]
[1756442130878,36.62,217.75,217.73,4.17061665]
[1756442131208,36.62,217.75,217.73,4.84061665]
[1756442131573,36.62,217.75,217.7,0.2]
[1756442131786,36.62,217.75,217.71,4.84061665]
[1756442131985,4.88061665,217.74,217.7,0.2]
[1756442132193,4.17061665,217.72,217.7,0.2]
[1756442132399,40.79061665,217.71,217.7,0.2]
[1756442132595,41.50061665,217.71,217.7,0.2]
[1756442132787,46.09388292,217.71,217.7,0.2]
[1756442132978,37.33,217.71,217.7,0.2]
[1756442133302,48.51861588,217.71,217.7,0.2]
[1756442134404,43.92534961,217.71,217.7,0.2]
[1756442135091,48.51861588,217.71,217.7,0.2]
[1756442136077,43.21534961,217.71,217.7,0.2]
[1756442136281,36.62,217.71,217.7,0.2]
[1756442136494,6.59534961,217.73,217.7,0.2]
[1756442136696,36.62,217.72,217.7,0.2]
[1756442137098,6.59534961,217.73,217.7,0.2]
[1756442137276,36.62,217.72,217.7,0.87]
[1756442137479,36.62,217.71,217.7,0.87]
[1756442137705,36.62,217.71,217.7,0.2]
[1756442139138,0.71,217.76,217.7,0.2]
[1756442139295,36.62,217.75,217.7,6.79534961]
[1756442139493,26.0,217.79,217.71,0.67]
[1756442139688,6.59534961,217.77,217.71,7.26534961]
[1756442140292,7.30534961,217.79,217.74,26.0]
[1756442140501,36.62,217.78,217.74,32.59534961]
[1756442140804,43.92534961,217.78,217.72,7.26534961]
[1756442141185,43.92534961,217.78,217.72,6.59534961]
[1756442141520,43.92534961,217.78,217.72,11.18836113]
[1756442141718,43.92534961,217.78,217.72,6.59534961]
[1756442141888,0.71,217.77,217.72,6.59534961]
[1756442142084,0.71,217.76,217.72,6.59534961]
[1756442142297,36.62,217.75,217.72,6.59534961]
[1756442142501,36.62,217.75,217.72,11.18831013]
[1756442142707,36.62,217.75,217.73,6.59534961]
[1756442144314,36.62,217.75,217.71,4.5932549]
[1756442144519,36.62,217.75,217.72,6.59534961]
[1756442147330,3.84278364,217.88,217.74,32.59534961]
[1756442147502,0.71,217.85,217.8,6.59534961]
[1756442147700,0.71,217.84,217.8,6.59534961]
[1756442147918,36.6,217.83,217.81,6.59534961]
[1756442148238,36.6,217.83,217.82,6.59534961]
[1756442148623,7.30534961,217.89,217.82,11.18629626]
[1756442148803,36.6,217.88,217.84,6.59534961]
[1756442149004,37.31,217.88,217.83,6.59534961]
[1756442149223,0.71,217.87,217.83,6.59534961]
[1756442150503,0.71,217.86,217.82,6.59534961]
[1756442151237,40.38534961,217.9,217.83,0.67]
[1756442151399,36.6,217.89,217.85,6.59534961]
[1756442151603,37.31,217.89,217.85,6.59534961]
[1756442151822,0.71,217.88,217.84,6.59534961]
[1756442152215,36.6,217.89,217.85,6.59534961]
[1756442152541,36.6,217.89,217.86,6.59534961]
[1756442153015,36.6,217.89,217.84,6.59534961]
[1756442153218,36.6,217.89,217.81,4.59094702]
[1756442153219,6.59534961,217.87,217.81,26.0]
[1756442153414,43.90534961,217.86,217.81,26.0]
[1756442153737,0.71,217.85,217.81,32.59534961]
[1756442154236,0.71,217.85,217.82,6.59534961]
[1756442154412,36.6,217.86,217.83,6.59534961]
[1756442154802,0.71,217.89,217.85,6.59534961]
[1756442155035,36.6,217.88,217.85,6.59534961]
[1756442155234,36.6,217.88,217.84,6.59534961]
[1756442155408,0.71,217.87,217.83,4.17753018]
[1756442156732,40.77753018,217.88,217.81,30.59115103]
[1756442156733,0.71,217.86,217.81,30.59115103]
[1756442156933,0.71,217.86,217.81,31.26115103]
[1756442157126,41.48753018,217.88,217.81,31.26115103]
[1756442157503,37.31,217.88,217.81,31.26115103]
[1756442158326,36.58,217.89,217.82,0.67]
[1756442158639,36.58,217.89,217.86,4.17753018]
[1756442158837,36.58,217.89,217.85,4.59023179]
[1756442159017,4.17753018,217.86,217.78,0.67]
[1756442159210,40.75753018,217.85,217.8,4.17753018]
[1756442159413,40.75753018,217.85,217.79,4.17753018]
[1756442159727,0.71,217.84,217.79,4.17753018]
[1756442159911,0.71,217.83,217.79,4.17753018]
[1756442160316,41.47753018,217.85,217.79,4.17753018]
[1756442160615,41.47753018,217.85,217.79,8.76895468]
[1756442161241,4.59010871,217.86,217.79,8.76895468]
[1756442161415,43.88518135,217.85,217.78,26.67]
[1756442161615,6.58518135,217.84,217.78,32.58518135]
[1756442161921,6.58518135,217.84,217.78,26.0]
[1756442162125,36.58,217.85,217.75,6.58518135]
[1756442162126,6.58518135,217.8,217.75,6.58518135]
[1756442162325,6.58518135,217.8,217.73,5.26284434]
[1756442162515,0.72,217.79,217.74,6.58518135]
[1756442162842,0.72,217.79,217.75,6.58518135]
[1756442163019,0.72,217.79,217.73,30.59284434]
[1756442163020,0.72,217.79,217.74,0.67]
[1756442163228,6.58518135,217.77,217.71,6.58518135]
[1756442163421,43.88518135,217.77,217.71,6.58518135]
[1756442164015,6.58518135,217.74,217.7,0.2]
[1756442164239,36.58,217.73,217.7,0.2]
[1756442164541,37.3,217.73,217.7,0.2]
[1756442164843,7.30518135,217.72,217.7,0.2]
[1756442165035,6.58518135,217.71,217.7,0.2]
[1756442165736,0.72,217.74,217.7,0.2]
[1756442165933,43.16518135,217.73,217.7,0.2]
[1756442166127,43.88518135,217.73,217.7,0.2]
[1756442167040,37.3,217.73,217.7,0.2]
[1756442167643,3.84278364,217.82,217.72,6.58518135]
[1756442167817,43.16518135,217.83,217.77,6.58518135]
[1756442168218,43.88518135,217.83,217.77,6.58518135]
[1756442168943,0.06,217.78,217.77,6.58518135]
[1756442169145,0.06,217.78,217.75,4.5924225]
[1756442169334,0.06,217.78,217.76,6.58518135]
[1756442169940,7.30518135,217.77,217.7,6.78518135]